[Event "Early-Titled-Tuesday-Blitz-September-12-2023"]
[Site "Chess.com"]
[Date "2023.09.12"]
[Round "11"]
[White "Sanan_Sjugirov"]
[Black "Jospem"]
[Result "0-1"]
[WhiteElo "2928"]
[BlackElo "3105"]
[TimeControl "180+1"]
[EndTime "10:07:10 PDT"]
[Termination "Jospem won on time"]

1. e4 {[%clk 0:03:00.9]} 1... a6 {[%clk 0:03:00.9]} 2. d4 {[%clk 0:03:01]} 2...
c6 {[%clk 0:03:01.8]} 3. Nf3 {[%clk 0:02:54.6]} 3... d5 {[%clk 0:03:02.7]} 4.
exd5 {[%clk 0:02:55.3]} 4... cxd5 {[%clk 0:03:03]} 5. Bd3 {[%clk 0:02:55.8]}
5... Nc6 {[%clk 0:03:03.1]} 6. c3 {[%clk 0:02:55.6]} 6... Bg4 {[%clk 0:03:03.6]}
7. Nbd2 {[%clk 0:02:55.7]} 7... e6 {[%clk 0:03:03.9]} 8. h3 {[%clk 0:02:56]}
8... Bh5 {[%clk 0:03:04.1]} 9. Nf1 {[%clk 0:02:53.8]} 9... Bd6 {[%clk
0:03:04.4]} 10. Ne3 {[%clk 0:02:46.9]} 10... Nge7 {[%clk 0:03:04.3]} 11. O-O
{[%clk 0:02:46.7]} 11... Qc7 {[%clk 0:03:04.3]} 12. Re1 {[%clk 0:02:41.3]} 12...
Rd8 {[%clk 0:03:04.7]} 13. Bd2 {[%clk 0:02:33.2]} 13... Bg6 {[%clk 0:03:04.1]}
14. Bxg6 {[%clk 0:02:31.4]} 14... hxg6 {[%clk 0:03:05]} 15. Ng4 {[%clk
0:02:30.4]} 15... O-O {[%clk 0:03:01.8]} 16. Bg5 {[%clk 0:02:25.4]} 16... f6
{[%clk 0:03:00.8]} 17. Rxe6 {[%clk 0:02:17.9]} 17... fxg5 {[%clk 0:03:00.6]} 18.
Nxg5 {[%clk 0:02:13.8]} 18... Bf4 {[%clk 0:02:58.6]} 19. Nf3 {[%clk 0:02:13.1]}
19... Qd7 {[%clk 0:02:57.6]} 20. Qe2 {[%clk 0:02:12.5]} 20... Rf7 {[%clk
0:02:12.5]} 21. Re1 {[%clk 0:02:11.4]} 21... Rdf8 {[%clk 0:02:12.9]} 22. Nh4
{[%clk 0:02:04.2]} 22... g5 {[%clk 0:02:00.1]} 23. Nf3 {[%clk 0:02:04.2]} 23...
Nf5 {[%clk 0:01:55.3]} 24. g3 {[%clk 0:01:55.5]} 24... Be3 {[%clk 0:01:48.6]}
25. Nxe3 {[%clk 0:01:42.9]} 25... Qxe6 {[%clk 0:01:35.2]} 26. Nxg5 {[%clk
0:01:43.4]} 26... Qg6 {[%clk 0:01:15.9]} 27. Nxf7 {[%clk 0:01:40.6]} 27... Qxf7
{[%clk 0:01:16]} 28. Nxf5 {[%clk 0:00:59]} 28... Qxf5 {[%clk 0:01:16.9]} 29. h4
{[%clk 0:00:55.1]} 29... Rf6 {[%clk 0:01:13.4]} 30. Kg2 {[%clk 0:00:46.6]} 30...
Kh7 {[%clk 0:01:13.8]} 31. f3 {[%clk 0:00:35.8]} 31... Rf7 {[%clk 0:01:05]} 32.
Qf2 {[%clk 0:00:31.4]} 32... Qg6 {[%clk 0:01:01.8]} 33. g4 {[%clk 0:00:27.1]}
33... Na5 {[%clk 0:00:57.4]} 34. h5 {[%clk 0:00:25]} 34... Qd3 {[%clk
0:00:55.3]} 35. Qe2 {[%clk 0:00:21.8]} 35... Qxe2+ {[%clk 0:00:53.2]} 36. Rxe2
{[%clk 0:00:22.7]} 36... Nc4 {[%clk 0:00:53.7]} 37. Kg3 {[%clk 0:00:22.6]} 37...
g6 {[%clk 0:00:51.9]} 38. hxg6+ {[%clk 0:00:20.1]} 38... Kxg6 {[%clk 0:00:52.8]}
39. b3 {[%clk 0:00:19.2]} 39... Na3 {[%clk 0:00:53.3]} 40. Re6+ {[%clk
0:00:17.7]} 40... Kg7 {[%clk 0:00:53.3]} 41. Rd6 {[%clk 0:00:14.5]} 41... Nb5
{[%clk 0:00:53.6]} 42. Rxd5 {[%clk 0:00:14.1]} 42... Nxc3 {[%clk 0:00:54.3]} 43.
Re5 {[%clk 0:00:14.7]} 43... Rd7 {[%clk 0:00:53.5]} 44. g5 {[%clk 0:00:10.2]}
44... Nb5 {[%clk 0:00:54.1]} 45. d5 {[%clk 0:00:08.9]} 45... Nc3 {[%clk
0:00:53.1]} 46. f4 {[%clk 0:00:08.8]} 46... Nxd5 {[%clk 0:00:51.3]} 47. Kg4
{[%clk 0:00:09.4]} 47... Ne7 {[%clk 0:00:44.1]} 48. Re6 {[%clk 0:00:08.9]} 48...
Ng6 {[%clk 0:00:39.3]} 49. Rb6 {[%clk 0:00:07.5]} 49... Ne7 {[%clk 0:00:32.5]}
50. Re6 {[%clk 0:00:05.5]} 50... Nc6 {[%clk 0:00:32.6]} 51. f5 {[%clk
0:00:04.6]} 51... Rd4+ {[%clk 0:00:32.9]} 52. Kh5 {[%clk 0:00:04.6]} 52... Rd1
{[%clk 0:00:32.3]} 53. Re8 {[%clk 0:00:02.2]} 53... Kf7 {[%clk 0:00:31.7]} 54.
Rc8 {[%clk 0:00:02]} 54... Ne5 {[%clk 0:00:31.9]} 55. Rc7+ {[%clk 0:00:02.2]}
55... Kg8 {[%clk 0:00:21]} 56. g6 {[%clk 0:00:02.4]} 56... Rg1 {[%clk
0:00:21.7]} 57. Kh6 {[%clk 0:00:02.2]} 57... Rh1+ {[%clk 0:00:19.8]} 58. Kg5
{[%clk 0:00:02.6]} 58... Rg1+ {[%clk 0:00:16.8]} 59. Kf6 {[%clk 0:00:02.6]}
59... Ng4+ {[%clk 0:00:17.2]} 60. Kg5 {[%clk 0:00:03.1]} 60... Ne3+ {[%clk
0:00:17.8]} 61. Kh5 {[%clk 0:00:01.4]} 61... Rh1+ {[%clk 0:00:16.6]} 62. Kg5
{[%clk 0:00:01.4]} 62... Rg1+ {[%clk 0:00:17.5]} 63. Kh5 {[%clk 0:00:02.1]}
63... Nxf5 {[%clk 0:00:18]} 64. Rc8+ {[%clk 0:00:02.7]} 64... Kg7 {[%clk
0:00:18.2]} 65. Rc7+ {[%clk 0:00:03.4]} 65... Kf6 {[%clk 0:00:18.8]} 66. Rf7+
{[%clk 0:00:04.1]} 66... Ke6 {[%clk 0:00:18.6]} 67. Rxb7 {[%clk 0:00:04.9]}
67... Ke5 {[%clk 0:00:16.9]} 68. Ra7 {[%clk 0:00:04.6]} 68... Kf4 {[%clk
0:00:16.7]} 0-1

[Event "Early-Titled-Tuesday-Blitz-September-12-2023"]
[Site "Chess.com"]
[Date "2023.09.12"]
[Round "11"]
[White "Tsyhanchuk_Stanislav"]
[Black "Forge13"]
[Result "1-0"]
[WhiteElo "2445"]
[BlackElo "2601"]
[TimeControl "180+1"]
[EndTime "10:07:11 PDT"]
[Termination "Tsyhanchuk_Stanislav won by resignation"]

1. e4 {[%clk 0:03:00.9]} 1... e6 {[%clk 0:02:56.5]} 2. d4 {[%clk 0:03:00]} 2...
d5 {[%clk 0:02:56.8]} 3. Nc3 {[%clk 0:03:00.5]} 3... Nf6 {[%clk 0:02:56.2]} 4.
e5 {[%clk 0:02:58.9]} 4... Nfd7 {[%clk 0:02:55.7]} 5. f4 {[%clk 0:02:59.3]} 5...
c5 {[%clk 0:02:56.3]} 6. Nf3 {[%clk 0:02:59.8]} 6... Nc6 {[%clk 0:02:50.5]} 7.
Be3 {[%clk 0:02:52.2]} 7... a6 {[%clk 0:02:50.3]} 8. Qd2 {[%clk 0:02:03.9]} 8...
Qb6 {[%clk 0:02:48.3]} 9. Na4 {[%clk 0:01:49.1]} 9... Qb4 {[%clk 0:02:47.5]} 10.
b3 {[%clk 0:01:31.9]} 10... Qxd2+ {[%clk 0:02:37.4]} 11. Kxd2 {[%clk 0:01:29.3]}
11... b6 {[%clk 0:02:37.6]} 12. c4 {[%clk 0:01:20.2]} 12... dxc4 {[%clk
0:02:38.5]} 13. bxc4 {[%clk 0:01:18.8]} 13... cxd4 {[%clk 0:02:30.1]} 14. Nxd4
{[%clk 0:01:16.5]} 14... Bb4+ {[%clk 0:02:10.9]} 15. Nc3 {[%clk 0:00:56.5]}
15... Bb7 {[%clk 0:02:00.8]} 16. a3 {[%clk 0:00:52.6]} 16... Nxd4 {[%clk
0:01:58.2]} 17. Bxd4 {[%clk 0:00:50.2]} 17... Bc5 {[%clk 0:01:55.4]} 18. Bxc5
{[%clk 0:00:42.1]} 18... Nxc5 {[%clk 0:01:56.3]} 19. Rb1 {[%clk 0:00:34.4]}
19... O-O-O+ {[%clk 0:01:55.5]} 20. Ke3 {[%clk 0:00:30.4]} 20... Kc7 {[%clk
0:01:54.1]} 21. Be2 {[%clk 0:00:28.6]} 21... Rd7 {[%clk 0:01:38]} 22. Rhd1
{[%clk 0:00:21.9]} 22... Rhd8 {[%clk 0:01:15.4]} 23. Rxd7+ {[%clk 0:00:20]}
23... Rxd7 {[%clk 0:01:16.3]} 24. g3 {[%clk 0:00:20.5]} 24... g6 {[%clk
0:01:15]} 25. a4 {[%clk 0:00:20.5]} 25... Bc6 {[%clk 0:01:10.5]} 26. Ra1 {[%clk
0:00:15.9]} 26... Kb7 {[%clk 0:00:45.1]} 27. Ra2 {[%clk 0:00:10.6]} 27... h5
{[%clk 0:00:44.4]} 28. a5 {[%clk 0:00:10.4]} 28... bxa5 {[%clk 0:00:42.3]} 29.
Rxa5 {[%clk 0:00:11.3]} 29... Kb6 {[%clk 0:00:42.7]} 30. Ra2 {[%clk 0:00:10.8]}
30... a5 {[%clk 0:00:42.2]} 31. Rb2+ {[%clk 0:00:11]} 31... Kc7 {[%clk
0:00:42.7]} 32. Nb5+ {[%clk 0:00:11.2]} 32... Bxb5 {[%clk 0:00:29.1]} 33. Rxb5
{[%clk 0:00:12.1]} 33... Nb7 {[%clk 0:00:18.2]} 34. Bf3 {[%clk 0:00:12.4]} 34...
Kc8 {[%clk 0:00:16.3]} 35. Bxb7+ {[%clk 0:00:11.1]} 35... Rxb7 {[%clk
0:00:17.2]} 36. Rxa5 {[%clk 0:00:10.9]} 36... Kd7 {[%clk 0:00:12.6]} 37. Ra6
{[%clk 0:00:09]} 37... Rb2 {[%clk 0:00:12.1]} 38. Ra7+ {[%clk 0:00:07.2]} 38...
Ke8 {[%clk 0:00:11.9]} 39. c5 {[%clk 0:00:05.6]} 39... Rxh2 {[%clk 0:00:08.6]}
40. Kd3 {[%clk 0:00:05.8]} 40... Rh1 {[%clk 0:00:07.1]} 41. Kd2 {[%clk
0:00:04.1]} 41... Rh2+ {[%clk 0:00:06.7]} 42. Kc3 {[%clk 0:00:04.7]} 42... Rh1
{[%clk 0:00:05.6]} 43. Kb2 {[%clk 0:00:04.7]} 43... Rh2+ {[%clk 0:00:05.3]} 44.
Kb3 {[%clk 0:00:05.3]} 44... Rh1 {[%clk 0:00:05.3]} 45. Kb4 {[%clk 0:00:05.8]}
45... Rb1+ {[%clk 0:00:03.7]} 46. Kc4 {[%clk 0:00:06.1]} 46... Rc1+ {[%clk
0:00:04]} 47. Kb5 {[%clk 0:00:06.5]} 47... Kf8 {[%clk 0:00:03.9]} 48. Kc6 {[%clk
0:00:06.3]} 48... Kg7 {[%clk 0:00:04]} 49. Kd6 {[%clk 0:00:06.7]} 49... Rc3
{[%clk 0:00:03.3]} 50. c6 {[%clk 0:00:07]} 50... Rxg3 {[%clk 0:00:03.8]} 51. c7
{[%clk 0:00:07.3]} 51... Rd3+ {[%clk 0:00:04.2]} 52. Ke7 {[%clk 0:00:06.9]}
52... Rc3 {[%clk 0:00:04.8]} 53. Kd8 {[%clk 0:00:07.3]} 53... Rd3+ {[%clk
0:00:05.2]} 54. Ke8 {[%clk 0:00:06.6]} 54... Rc3 {[%clk 0:00:05.6]} 55. Ke7
{[%clk 0:00:05.9]} 55... Rc4 {[%clk 0:00:05.5]} 56. Kd7 {[%clk 0:00:06]} 56...
Rd4+ {[%clk 0:00:05.3]} 57. Kc6 {[%clk 0:00:06.5]} 57... Rc4+ {[%clk 0:00:05.9]}
58. Kd6 {[%clk 0:00:06.4]} 58... Rd4+ {[%clk 0:00:06.3]} 59. Kc5 {[%clk
0:00:06.8]} 59... Rd1 {[%clk 0:00:07.1]} 60. Ra4 {[%clk 0:00:07]} 60... Rd5+
{[%clk 0:00:07.3]} 61. Kc6 {[%clk 0:00:06.1]} 61... Rd1 {[%clk 0:00:07.4]} 62.
Ra5 {[%clk 0:00:06.6]} 62... Rc1+ {[%clk 0:00:07.1]} 63. Rc5 {[%clk 0:00:07.2]}
1-0

[Event "Early-Titled-Tuesday-Blitz-September-12-2023"]
[Site "Chess.com"]
[Date "2023.09.12"]
[Round "11"]
[White "artin10862"]
[Black "Oleksandr_Bortnyk"]
[Result "1-0"]
[WhiteElo "2961"]
[BlackElo "3011"]
[TimeControl "180+1"]
[EndTime "10:07:32 PDT"]
[Termination "artin10862 won by checkmate"]

1. Nf3 {[%clk 0:03:00.9]} 1... Nf6 {[%clk 0:03:00.4]} 2. c4 {[%clk 0:03:00]}
2... b6 {[%clk 0:03:00.8]} 3. Nc3 {[%clk 0:02:55.1]} 3... Bb7 {[%clk 0:03:01.7]}
4. d4 {[%clk 0:02:55.4]} 4... g6 {[%clk 0:03:02.2]} 5. Qc2 {[%clk 0:02:53.3]}
5... Bg7 {[%clk 0:03:01.9]} 6. e4 {[%clk 0:02:53.6]} 6... d6 {[%clk 0:03:02.1]}
7. Be2 {[%clk 0:02:51.3]} 7... O-O {[%clk 0:03:02.4]} 8. O-O {[%clk 0:02:51.9]}
8... e5 {[%clk 0:03:01.9]} 9. d5 {[%clk 0:02:49.2]} 9... a5 {[%clk 0:03:01.6]}
10. Bg5 {[%clk 0:02:47.1]} 10... Na6 {[%clk 0:03:01.5]} 11. a3 {[%clk 0:02:42]}
11... h6 {[%clk 0:03:01.7]} 12. Bh4 {[%clk 0:02:42]} 12... g5 {[%clk 0:03:01.1]}
13. Bg3 {[%clk 0:02:41.9]} 13... Bc8 {[%clk 0:03:00.9]} 14. Nd2 {[%clk 0:02:34]}
14... Bd7 {[%clk 0:02:58.8]} 15. Rfb1 {[%clk 0:02:27.8]} 15... Qe7 {[%clk
0:02:53]} 16. Qd1 {[%clk 0:02:23.6]} 16... a4 {[%clk 0:02:36.3]} 17. Nxa4 {[%clk
0:02:20.6]} 17... Nxe4 {[%clk 0:02:31.1]} 18. Nxe4 {[%clk 0:02:17.7]} 18... f5
{[%clk 0:02:31.7]} 19. Nac3 {[%clk 0:02:11.8]} 19... fxe4 {[%clk 0:02:32.3]} 20.
Nxe4 {[%clk 0:02:12.4]} 20... Nc5 {[%clk 0:02:33.2]} 21. Bd3 {[%clk 0:02:05.5]}
21... Bf5 {[%clk 0:02:28]} 22. Qc2 {[%clk 0:01:50.1]} 22... Nxd3 {[%clk
0:02:28.4]} 23. Qxd3 {[%clk 0:01:50.3]} 23... h5 {[%clk 0:02:28.1]} 24. f3
{[%clk 0:01:45.9]} 24... h4 {[%clk 0:02:28.3]} 25. Bf2 {[%clk 0:01:46.5]} 25...
g4 {[%clk 0:02:29]} 26. fxg4 {[%clk 0:01:45.5]} 26... Bxg4 {[%clk 0:02:25.9]}
27. Rf1 {[%clk 0:01:44.1]} 27... Rf7 {[%clk 0:02:05.6]} 28. Be3 {[%clk
0:01:31.5]} 28... Raf8 {[%clk 0:02:04.3]} 29. Bg5 {[%clk 0:01:20.9]} 29... Qe8
{[%clk 0:01:58.6]} 30. Bxh4 {[%clk 0:01:17.3]} 30... Rxf1+ {[%clk 0:01:36.2]}
31. Rxf1 {[%clk 0:01:16.7]} 31... Rxf1+ {[%clk 0:01:37.1]} 32. Qxf1 {[%clk
0:01:12.7]} 32... Qg6 {[%clk 0:01:37.5]} 33. Nf6+ {[%clk 0:00:52.7]} 33... Bxf6
{[%clk 0:01:37.5]} 34. Bxf6 {[%clk 0:00:53.6]} 34... Bf5 {[%clk 0:01:37.6]} 35.
Bd8 {[%clk 0:00:51]} 35... Bd3 {[%clk 0:01:37.8]} 36. Qf2 {[%clk 0:00:51.2]}
36... Bxc4 {[%clk 0:01:37.3]} 37. h3 {[%clk 0:00:48.4]} 37... Qg7 {[%clk
0:01:21.3]} 38. Qc2 {[%clk 0:00:32.1]} 38... b5 {[%clk 0:01:10.8]} 39. b3 {[%clk
0:00:28.5]} 39... Bxd5 {[%clk 0:01:07.1]} 40. Bxc7 {[%clk 0:00:28.4]} 40... Qf6
{[%clk 0:00:48.5]} 41. Qd3 {[%clk 0:00:21.9]} 41... Qe6 {[%clk 0:00:47.5]} 42.
Qxb5 {[%clk 0:00:21.8]} 42... e4 {[%clk 0:00:47.9]} 43. Qb8+ {[%clk 0:00:19.6]}
43... Kh7 {[%clk 0:00:46.8]} 44. Bxd6 {[%clk 0:00:19.1]} 44... e3 {[%clk
0:00:47.4]} 45. Bg3 {[%clk 0:00:11.9]} 45... Qe4 {[%clk 0:00:45.1]} 46. Qc7+
{[%clk 0:00:08.2]} 46... Kg6 {[%clk 0:00:42.1]} 47. Qd6+ {[%clk 0:00:08.5]}
47... Kf5 {[%clk 0:00:39.9]} 48. Qf8+ {[%clk 0:00:07.9]} 48... Kg6 {[%clk
0:00:31.4]} 49. Qd6+ {[%clk 0:00:07.8]} 49... Kf7 {[%clk 0:00:28.6]} 50. Qf4+
{[%clk 0:00:07.1]} 50... Qxf4 {[%clk 0:00:25.4]} 51. Bxf4 {[%clk 0:00:08]} 51...
e2 {[%clk 0:00:26.3]} 52. Bd2 {[%clk 0:00:06.3]} 52... Bxb3 {[%clk 0:00:26.3]}
53. Kf2 {[%clk 0:00:05.1]} 53... Bc4 {[%clk 0:00:24.4]} 54. g4 {[%clk
0:00:05.3]} 54... Kg6 {[%clk 0:00:24.1]} 55. Kg3 {[%clk 0:00:05.8]} 55... Kf6
{[%clk 0:00:23.5]} 56. Be1 {[%clk 0:00:06.3]} 56... Ke5 {[%clk 0:00:23.9]} 57.
h4 {[%clk 0:00:06.9]} 57... Bb3 {[%clk 0:00:22.3]} 58. h5 {[%clk 0:00:07.2]}
58... Bc2 {[%clk 0:00:22.2]} 59. Kh4 {[%clk 0:00:05.5]} 59... Kf4 {[%clk
0:00:20.3]} 60. g5 {[%clk 0:00:05.6]} 60... Kf5 {[%clk 0:00:20.6]} 61. g6 {[%clk
0:00:04.3]} 61... Bb3 {[%clk 0:00:20.7]} 62. Bc3 {[%clk 0:00:03.7]} 62... Ba4
{[%clk 0:00:10.6]} 63. g7 {[%clk 0:00:02.8]} 63... Bb3 {[%clk 0:00:10.5]} 64. a4
{[%clk 0:00:03.3]} 64... e1=Q+ {[%clk 0:00:09.5]} 65. Bxe1 {[%clk 0:00:03.2]}
65... Kf6 {[%clk 0:00:10.4]} 66. Bc3+ {[%clk 0:00:03.1]} 66... Kf7 {[%clk
0:00:11.3]} 67. a5 {[%clk 0:00:04]} 67... Bc4 {[%clk 0:00:12.1]} 68. Kg5 {[%clk
0:00:04.2]} 68... Kg8 {[%clk 0:00:12.8]} 69. Kf4 {[%clk 0:00:04.2]} 69... Be2
{[%clk 0:00:12.8]} 70. h6 {[%clk 0:00:04.1]} 70... Kh7 {[%clk 0:00:13.1]} 71.
Bd2 {[%clk 0:00:03.8]} 71... Bc4 {[%clk 0:00:13.7]} 72. Ke5 {[%clk 0:00:04.4]}
72... Ba6 {[%clk 0:00:13.9]} 73. Kd6 {[%clk 0:00:05.3]} 73... Bc8 {[%clk
0:00:14.8]} 74. Kc7 {[%clk 0:00:06.2]} 74... Bf5 {[%clk 0:00:15.7]} 75. a6
{[%clk 0:00:06]} 75... Bd3 {[%clk 0:00:16.6]} 76. a7 {[%clk 0:00:06.9]} 76...
Be4 {[%clk 0:00:17.5]} 77. Kb8 {[%clk 0:00:07.5]} 77... Bg6 {[%clk 0:00:18.4]}
78. a8=Q {[%clk 0:00:07.8]} 78... Bf7 {[%clk 0:00:19.3]} 79. Qe4+ {[%clk
0:00:08]} 79... Bg6 {[%clk 0:00:19.8]} 80. Qe5 {[%clk 0:00:08.5]} 80... Be8
{[%clk 0:00:20.2]} 81. g8=Q+ {[%clk 0:00:08.5]} 81... Kxg8 {[%clk 0:00:20.5]}
82. Qg7# {[%clk 0:00:09.4]} 1-0

[Event "Early-Titled-Tuesday-Blitz-September-12-2023"]
[Site "Chess.com"]
[Date "2023.09.12"]
[Round "11"]
[White "Happy1712Drummer"]
[Black "cukin84"]
[Result "1-0"]
[WhiteElo "2345"]
[BlackElo "2219"]
[TimeControl "180+1"]
[EndTime "10:07:43 PDT"]
[Termination "Happy1712Drummer won by resignation"]

1. e4 {[%clk 0:03:00.9]} 1... c6 {[%clk 0:02:59.7]} 2. Ne2 {[%clk 0:02:58]} 2...
d5 {[%clk 0:02:59.9]} 3. e5 {[%clk 0:02:58.5]} 3... Bf5 {[%clk 0:02:58.1]} 4.
Ng3 {[%clk 0:02:58.3]} 4... Bg6 {[%clk 0:02:58.2]} 5. h4 {[%clk 0:02:58.7]} 5...
h5 {[%clk 0:02:55.8]} 6. d4 {[%clk 0:02:53.4]} 6... e6 {[%clk 0:02:55.5]} 7. Bd3
{[%clk 0:02:51.7]} 7... Bxd3 {[%clk 0:02:54.3]} 8. Qxd3 {[%clk 0:02:52.6]} 8...
g6 {[%clk 0:02:53.2]} 9. O-O {[%clk 0:02:50.9]} 9... Nd7 {[%clk 0:02:52.8]} 10.
c4 {[%clk 0:02:45.8]} 10... dxc4 {[%clk 0:02:51.8]} 11. Qxc4 {[%clk 0:02:40.6]}
11... Rc8 {[%clk 0:02:49.7]} 12. Ne4 {[%clk 0:02:24.2]} 12... Qxh4 {[%clk
0:02:47.2]} 13. Nbc3 {[%clk 0:02:19.6]} 13... Nb6 {[%clk 0:02:37]} 14. Qe2
{[%clk 0:01:58.3]} 14... Qd8 {[%clk 0:02:23.3]} 15. Bg5 {[%clk 0:01:57.2]} 15...
Qd7 {[%clk 0:02:17.1]} 16. Bf6 {[%clk 0:01:52.5]} 16... Rh7 {[%clk 0:02:13.7]}
17. Ng5 {[%clk 0:01:52.4]} 17... Rg7 {[%clk 0:02:10.8]} 18. Bxg7 {[%clk
0:01:51.5]} 18... Bxg7 {[%clk 0:02:11.1]} 19. Nce4 {[%clk 0:01:51.8]} 19... Bf8
{[%clk 0:02:02.3]} 20. Qf3 {[%clk 0:01:33.4]} 20... Nd5 {[%clk 0:01:54.3]} 21.
Rac1 {[%clk 0:01:28.7]} 21... Nh6 {[%clk 0:01:52.2]} 22. Nh7 {[%clk 0:01:15.2]}
22... Nf5 {[%clk 0:01:48.6]} 23. Nhf6+ {[%clk 0:01:12.8]} 23... Nxf6 {[%clk
0:01:44.3]} 24. Nxf6+ {[%clk 0:01:13.7]} 24... Ke7 {[%clk 0:01:44.8]} 25. Nxd7
{[%clk 0:01:14.1]} 25... Kxd7 {[%clk 0:01:45.3]} 26. Rfd1 {[%clk 0:01:13.1]}
26... Ke8 {[%clk 0:01:39.8]} 27. g4 {[%clk 0:01:10.5]} 27... hxg4 {[%clk
0:01:39.2]} 28. Qxg4 {[%clk 0:01:11.4]} 28... Rd8 {[%clk 0:01:34.7]} 29. a3
{[%clk 0:01:09.6]} 29... Rd5 {[%clk 0:01:34.7]} 30. b4 {[%clk 0:01:08.4]} 30...
Be7 {[%clk 0:01:33.2]} 31. Rc3 {[%clk 0:01:01.6]} 31... a6 {[%clk 0:01:31.5]}
32. Rh3 {[%clk 0:00:59.4]} 32... Kd7 {[%clk 0:01:29.8]} 33. Rh7 {[%clk
0:00:58.4]} 33... Ke8 {[%clk 0:01:25.8]} 34. Kg2 {[%clk 0:00:56.1]} 34... a5
{[%clk 0:01:22.1]} 35. bxa5 {[%clk 0:00:55.5]} 35... Rxa5 {[%clk 0:01:21.3]} 36.
Rb1 {[%clk 0:00:54.8]} 36... b5 {[%clk 0:01:19.9]} 37. Rc1 {[%clk 0:00:53]}
37... Ra6 {[%clk 0:01:12.5]} 38. Qf3 {[%clk 0:00:48.8]} 38... Kd7 {[%clk
0:01:07.9]} 39. Rxf7 {[%clk 0:00:48.5]} 39... Nh4+ {[%clk 0:01:07.5]} 40. Kg3
{[%clk 0:00:42]} 40... Nxf3 {[%clk 0:01:06.7]} 41. Rxf3 {[%clk 0:00:40.2]} 41...
Ke8 {[%clk 0:01:00.8]} 42. Rcc3 {[%clk 0:00:36.9]} 42... g5 {[%clk 0:00:57.1]}
43. Kg4 {[%clk 0:00:36.5]} 43... Ra4 {[%clk 0:00:56.4]} 44. Rfd3 {[%clk
0:00:31.1]} 44... c5 {[%clk 0:00:54.8]} 45. Kh5 {[%clk 0:00:28.7]} 45... cxd4
{[%clk 0:00:51.7]} 46. Rc6 {[%clk 0:00:20.4]} 46... Kd7 {[%clk 0:00:50.3]} 47.
Rb6 {[%clk 0:00:20.8]} 47... Ra8 {[%clk 0:00:42.8]} 48. Rxb5 {[%clk 0:00:18.6]}
48... Rh8+ {[%clk 0:00:41.8]} 49. Kg4 {[%clk 0:00:19]} 49... Rh4+ {[%clk
0:00:41.6]} 50. Kf3 {[%clk 0:00:19.5]} 50... Kc6 {[%clk 0:00:39.2]} 51. Rbb3
{[%clk 0:00:16.8]} 51... Kd5 {[%clk 0:00:36.5]} 52. Rb5+ {[%clk 0:00:17.2]}
52... Bc5 {[%clk 0:00:35.9]} 53. a4 {[%clk 0:00:15.9]} 53... Kc4 {[%clk
0:00:31.5]} 54. Rd1 {[%clk 0:00:15.1]} 54... Rh3+ {[%clk 0:00:30.5]} 55. Ke2
{[%clk 0:00:14.9]} 55... Rc3 {[%clk 0:00:28.7]} 56. Rd2 {[%clk 0:00:08.5]} 56...
Ba7 {[%clk 0:00:22.2]} 57. Rb7 {[%clk 0:00:07.3]} 57... d3+ {[%clk 0:00:21.2]}
58. Kd1 {[%clk 0:00:04.3]} 58... Bd4 {[%clk 0:00:19.5]} 59. Rc7+ {[%clk
0:00:04.2]} 59... Kb3 {[%clk 0:00:19.4]} 60. Rxc3+ {[%clk 0:00:04.1]} 60... Kxc3
{[%clk 0:00:18.4]} 61. a5 {[%clk 0:00:04.5]} 61... Bxe5 {[%clk 0:00:16.2]} 62.
a6 {[%clk 0:00:04.9]} 62... Bd4 {[%clk 0:00:15.6]} 63. Ra2 {[%clk 0:00:03.8]}
63... Ba7 {[%clk 0:00:15]} 64. Ra3+ {[%clk 0:00:04.4]} 64... Kd4 {[%clk
0:00:15.2]} 65. Kd2 {[%clk 0:00:04.4]} 65... e5 {[%clk 0:00:14.8]} 66. Rxd3+
{[%clk 0:00:04.5]} 66... Ke4 {[%clk 0:00:13.8]} 67. Ra3 {[%clk 0:00:03.3]} 67...
Kf4 {[%clk 0:00:12.6]} 68. Ke2 {[%clk 0:00:03.6]} 68... g4 {[%clk 0:00:11.8]}
69. Rb3 {[%clk 0:00:02.5]} 69... e4 {[%clk 0:00:11.2]} 70. Rb7 {[%clk
0:00:02.6]} 70... Bd4 {[%clk 0:00:10.7]} 71. a7 {[%clk 0:00:02.1]} 71... Bxa7
{[%clk 0:00:08.6]} 72. Rxa7 {[%clk 0:00:03]} 72... Ke5 {[%clk 0:00:06.4]} 73.
Rg7 {[%clk 0:00:02.9]} 73... Kf4 {[%clk 0:00:05.6]} 74. Rf7+ {[%clk 0:00:03.1]}
74... Kg5 {[%clk 0:00:04.1]} 75. Ke3 {[%clk 0:00:04]} 75... Kg6 {[%clk
0:00:03.3]} 76. Rf4 {[%clk 0:00:04.9]} 76... Kg5 {[%clk 0:00:02.9]} 77. Rxe4
{[%clk 0:00:05.3]} 1-0